[Event "Gibraltar Amateurs A 2020"]
[Site "Caleta"]
[Date "2020.01.24"]
[Round "5.13"]
[White "Kearsley, Raymond J"]
[Black "Bryant, Richard B E"]
[Result "1/2-1/2"]
[WhiteElo "1611"]
[BlackElo "1849"]
[Annotator "NA RC"]
[PlyCount "21"]
[EventDate "2020.01.20"]
[EventType "swiss"]
[EventCountry "GGB"]
[SourceTitle "playchess.com"]
[Source "ChessBase"]
[SourceQuality "1"]
[TimeControl "6600+10"]

1. e4 {[%emt 0:11:07]} b6 {[%emt 0:00:05]} 2. d4 {[%emt 0:00:35]} Bb7 {[%emt 0:00:06]} 3. Nc3 {[%emt 0:00:15]} e6 {[%emt 0:00:14]} 4. Nf3 {[%emt 0:00:24]} Bb4 {[%emt 0:01:01]} 5. Bd3 {[%emt 0:00:10]} Nf6 {[%emt 0:02:08]} 6. Qe2 {[%emt 0:00:11]} c5 {[%emt 0:00:55]} 7. a3 {[%emt 0:01:13]} Bxc3+ {[%emt 0:00:27]} 8. bxc3 {[%emt 0:00:11]} c4 {[%emt 0:00:12]} 9. Bxc4 {[%emt 0:00:35]} Nxe4 {[%emt 0:00:11]} 10. Bb2 {[%emt 0:02:34]} Qc7 {[%emt 0:00:55]} 11. O-O {[%emt 0:00:42]} 1/2-1/2

[Event "Gibraltar Amateurs A 2020"]
[Site "Caleta"]
[Date "2020.01.24"]
[Round "5.14"]
[White "Hudson, Jeremy"]
[Black "Kovacevic, Aleksandar S"]
[Result "0-1"]
[ECO "C00"]
[WhiteElo "1570"]
[BlackElo "1804"]
[Annotator "NA RC"]
[PlyCount "52"]
[EventDate "2020.01.20"]
[EventType "swiss"]
[EventCountry "GGB"]
[SourceTitle "playchess.com"]
[Source "ChessBase"]
[SourceQuality "1"]
[TimeControl "6600+10"]

1. e4 {[%emt 0:00:00]} e6 {[%emt 0:01:18]} 2. c4 {[%emt 0:00:51]} d5 {[%emt 0:00:12]} 3. exd5 {[%emt 0:00:09]} exd5 {[%emt 0:00:21]} 4. cxd5 {[%emt 0:00:29]} Qxd5 {[%emt 0:01:06]} 5. Nc3 {[%emt 0:00:09]} Qd8 {[%emt 0:02:17]} 6. Bc4 {[%emt 0:01:31] C00: French: Unusual White 2nd moves} Nf6 {[%emt 0:00:25]} 7. Qb3 {[%emt 0:02:30]} Qe7+ {[%emt 0:04:11]} 8. Nge2 {[%emt 0:06:14]} (8. Kd1 Qd7 9. Nf3 Bd6 10. Re1+ Kf8 11. d4 {½-½ (11) Markovic,M (2466)-Drazic,S (2411) Backi Petrovac 2018}) 8... Nc6 {[%emt 0:04:28]} 9. d3 $146 {[%emt 0:03:40]} ({Predecessor:} 9. O-O g6 10. d4 Bg7 11. Bg5 O-O 12. Rfe1 Na5 13. Qb5 Nxc4 14. Qxc4 {½-½ (65) Wiberg,I (1759)-Morkore,R (1317) Kollafjord 2017}) 9... a6 {[%emt 0:00:00]} 10. Bf4 {[%emt 0:20:30]} b5 {[%emt 0:04:34]} 11. Bxb5 {[%emt 0:17:31]} axb5 {[%emt 0:05:24]} 12. Nxb5 {[%emt 0:01:54]} Rb8 {[%emt 0:01:54]} 13. O-O {[%emt 0:00:33]} g5 {[%emt 0:08:38]} 14. Ned4 {[%emt 0:28:30]} Nxd4 {[%emt 0:08:37]} 15. Nxc7+ {[%emt 0:00:32] [#]} Qxc7 $1 {[%emt 0:06:26]} 16. Qxb8 {[%emt 0:06:13]} Qxb8 {[%emt 0:02:02]} 17. Bxb8 {[%emt 0:00:03]} Nc6 {[%emt 0:03:19]} 18. Rac1 {[%emt 0:01:06]} Kd7 {[%emt 0:00:21]} 19. Bg3 {[%emt 0:01:03]} Nd5 {[%emt 0:00:34]} 20. a4 {[%emt 0:03:21]} f5 {[%emt 0:01:50]} 21. f4 $19 {[%emt 0:01:17]} Nd4 {[%emt 0:00:53]} 22. Rfe1 {[%emt 0:04:00]} gxf4 {[%emt 0:00:48]} 23. Bf2 {[%emt 0:00:45]} Ne3 {[%emt 0:01:10]} 24. Kh1 {[%emt 0:01:32]} Bb7 {[%emt 0:00:15]} 25. Bxe3 {[%emt 0:00:27]} fxe3 {[%emt 0:00:13]} 26. Rxe3 {[%emt 0:00:04]} Bh6 {[%emt 0:00:09]} 0-1

[Event "Gibraltar Amateurs A 2020"]
[Site "Caleta"]
[Date "2020.01.24"]
[Round "5.16"]
[White "Poggio, Freddie"]
[Black "Jimenez Urquijo, Juan Manuel"]
[Result "0-1"]
[ECO "D05"]
[WhiteElo "1680"]
[BlackElo "1567"]
[Annotator "NA RC"]
[PlyCount "107"]
[EventDate "2020.01.20"]
[EventType "swiss"]
[EventCountry "GGB"]
[SourceTitle "playchess.com"]
[Source "ChessBase"]
[SourceQuality "1"]
[TimeControl "6600+10"]

1. d4 {[%emt 0:00:17]} d5 {[%emt 0:00:00]} 2. Nf3 {[%emt 0:00:09]} Nf6 {[%emt 0:00:00]} 3. Nbd2 {[%emt 0:00:50]} e6 {[%emt 0:00:31]} 4. e3 {[%emt 0:00:19]} c5 {[%emt 0:02:23]} 5. c3 {[%emt 0:00:18]} b6 {[%emt 0:01:06]} 6. Bd3 {[%emt 0:01:20]} Bb7 {[%emt 0:00:53]} 7. O-O {[%emt 0:00:45]} Nbd7 {[%emt 0:00:41]} 8. Qe2 {[%emt 0:01:36]} Be7 {[%emt 0:06:57]} 9. Re1 {[%emt 0:00:53]} cxd4 {[%emt 0:03:31]} 10. exd4 {[%emt 0:01:58]} O-O {[%emt 0:00:08]} 11. Ng5 {[%emt 0:06:09]} g6 {[%emt 0:07:24]} 12. Nf1 {[%emt 0:06:33]} Ne4 {[%emt 0:01:36]} 13. Nxe4 {[%emt 0:00:43]} dxe4 {[%emt 0:00:48]} 14. Bxe4 {[%emt 0:00:20]} Bxe4 {[%emt 0:00:38]} 15. Qxe4 {[%emt 0:00:31]} Bf6 {[%emt 0:00:15]} 16. Bh6 {[%emt 0:02:24]} Re8 {[%emt 0:01:08]} 17. Rad1 {[%emt 0:00:32]} Bh8 {[%emt 0:03:30]} 18. Nd2 {[%emt 0:06:33]} Nf6 {[%emt 0:04:20]} 19. Qf3 {[%emt 0:01:32]} Rc8 {[%emt 0:10:17]} 20. Bg5 {[%emt 0:00:40]} Qd5 {[%emt 0:06:52]} 21. Bxf6 {[%emt 0:01:16]} Qxf3 {[%emt 0:00:26]} 22. Nxf3 {[%emt 0:00:22]} Bxf6 {[%emt 0:00:05]} 23. Ne5 {[%emt 0:00:43]} Red8 {[%emt 0:01:52]} 24. f4 {[%emt 0:03:01]} h5 {[%emt 0:04:59]} 25. g4 {[%emt 0:00:44]} hxg4 {[%emt 0:06:02]} 26. Nxg4 {[%emt 0:00:38]} Bh4 {[%emt 0:00:23]} 27. Re3 {[%emt 0:01:51]} Kg7 {[%emt 0:06:07]} 28. Kg2 {[%emt 0:03:07]} b5 {[%emt 0:04:16]} 29. Rh3 {[%emt 0:01:13]} Be7 {[%emt 0:06:30]} 30. b4 {[%emt 0:05:26]} Rd6 {[%emt 0:03:54]} 31. Rhd3 {[%emt 0:05:33]} Ra6 {[%emt 0:01:28]} 32. R1d2 {[%emt 0:02:34]} Ra3 {[%emt 0:00:21]} 33. d5 {[%emt 0:00:59]} exd5 {[%emt 0:00:36]} 34. Rxd5 {[%emt 0:01:01]} Raxc3 {[%emt 0:00:09]} 35. Rxb5 {[%emt 0:01:26]} Rc2 {[%emt 0:01:14]} 36. Rxc2 {[%emt 0:01:01]} Rxc2+ {[%emt 0:00:12]} 37. Kg3 {[%emt 0:00:41]} Rxa2 {[%emt 0:00:14]} 38. Rb7 {[%emt 0:00:22]} Bf6 {[%emt 0:00:45]} 39. b5 {[%emt 0:01:08]} Bd4 {[%emt 0:00:52]} 40. Rd7 {[%emt 0:00:52]} Ra3+ {[%emt 0:01:18]} 41. Kg2 {[%emt 0:01:05]} Ra4 {[%emt 0:01:04]} 42. h4 {[%emt 0:01:59]} Bb6 {[%emt 0:01:53]} 43. Kf3 {[%emt 0:00:38]} Rd4 {[%emt 0:03:26]} 44. Rb7 {[%emt 0:01:22]} Rc4 {[%emt 0:00:30]} 45. Rxf7+ {[%emt 0:01:04]} Kxf7 {[%emt 0:05:55]} 46. Ne5+ {[%emt 0:00:09]} Ke6 {[%emt 0:01:35]} 47. Nxc4 {[%emt 0:00:15]} Bd8 {[%emt 0:00:18]} 48. Kg4 {[%emt 0:00:30]} Kf6 {[%emt 0:02:31]} 49. Nd6 {[%emt 0:02:45]} Ke6 {[%emt 0:01:06]} 50. Nc8 {[%emt 0:00:18]} Bb6 {[%emt 0:00:37]} 51. Nxb6 {[%emt 0:00:48]} axb6 {[%emt 0:00:01]} 52. Kg5 {[%emt 0:00:13]} Kf7 {[%emt 0:04:18]} 53. f5 {[%emt 0:00:16]} gxf5 {[%emt 0:00:10]} 54. Kxf5 {[%emt 0:00:12]} 0-1

[Event "Gibraltar Amateurs A 2020"]
[Site "Caleta"]
[Date "2020.01.24"]
[Round "5.17"]
[White "Clare, Steve"]
[Black "Henderson, SE."]
[Result "1-0"]
[ECO "C34"]
[WhiteElo "1632"]
[BlackElo "1517"]
[Annotator "NA RC"]
[PlyCount "89"]
[EventDate "2020.01.20"]
[EventType "swiss"]
[EventCountry "GGB"]
[SourceTitle "playchess.com"]
[Source "ChessBase"]
[SourceQuality "1"]
[TimeControl "6600+10"]

1. e4 {[%emt 0:00:00]} e5 {[%emt 0:00:22]} 2. f4 {[%emt 0:00:01]} exf4 {[%emt 0:01:41]} 3. Nf3 {[%emt 0:00:07]} Be7 {[%emt 0:03:34]} 4. Bc4 {[%emt 0:00:46]} Nf6 {[%emt 0:00:50]} 5. Nc3 {[%emt 0:04:29]} O-O {[%emt 0:01:04]} 6. O-O {[%emt 0:02:15]} d6 {[%emt 0:00:32]} 7. d4 {[%emt 0:01:50]} Nxe4 {[%emt 0:01:07]} 8. Bxf4 {[%emt 0:02:10]} Nxc3 {[%emt 0:01:14]} 9. bxc3 {[%emt 0:00:07]} Nd7 {[%emt 0:01:18]} 10. Qd3 {[%emt 0:02:12]} Nf6 {[%emt 0:01:54]} 11. Rae1 {[%emt 0:02:31]} d5 {[%emt 0:01:02]} 12. Bb3 {[%emt 0:00:40]} h6 {[%emt 0:00:14]} 13. c4 {[%emt 0:04:08]} c6 {[%emt 0:01:17]} 14. cxd5 {[%emt 0:00:24]} Nxd5 {[%emt 0:00:42]} 15. Bd2 {[%emt 0:03:08]} Bd6 {[%emt 0:00:30]} 16. Ne5 {[%emt 0:02:21]} Be6 {[%emt 0:00:38]} 17. c3 {[%emt 0:07:10]} Qc7 {[%emt 0:00:39]} 18. Bc2 {[%emt 0:01:15]} f5 {[%emt 0:05:31]} 19. Rf3 {[%emt 0:02:26]} Rf6 {[%emt 0:00:53]} 20. Rg3 {[%emt 0:02:35]} Raf8 {[%emt 0:01:13]} 21. h4 {[%emt 0:06:15]} Ne7 {[%emt 0:03:09]} 22. h5 {[%emt 0:03:50]} Bf7 {[%emt 0:02:05]} 23. Rh3 {[%emt 0:02:19]} Be6 {[%emt 0:03:15]} 24. g4 {[%emt 0:09:16]} g5 {[%emt 0:01:01]} 25. hxg6 {[%emt 0:01:24]} Bxe5 {[%emt 0:00:18]} 26. dxe5 {[%emt 0:05:03]} Rxg6 {[%emt 0:03:02]} 27. g5 {[%emt 0:08:26]} hxg5 {[%emt 0:02:04]} 28. Qg3 {[%emt 0:02:23]} Kg7 {[%emt 0:03:21]} 29. Qh2 {[%emt 0:02:34]} Rg8 {[%emt 0:00:31]} 30. Be3 {[%emt 0:03:57]} Kf7 {[%emt 0:01:03]} 31. Bc5 {[%emt 0:05:14]} Nd5 {[%emt 0:01:23]} 32. c4 {[%emt 0:02:14]} Nf4 {[%emt 0:00:31]} 33. Rh7+ {[%emt 0:04:52]} R6g7 {[%emt 0:02:23]} 34. Rxg7+ {[%emt 0:00:17]} Kxg7 {[%emt 0:01:10]} 35. Qg3 {[%emt 0:01:04]} Kf7 {[%emt 0:00:36]} 36. Qh2 {[%emt 0:01:31]} Kg6 {[%emt 0:00:36]} 37. Qg3 {[%emt 0:00:22]} Qa5 {[%emt 0:01:04]} 38. Be7 {[%emt 0:01:36]} Kf7 {[%emt 0:02:16]} 39. Bd6 {[%emt 0:01:58]} Qd2 {[%emt 0:00:26]} 40. Bd1 {[%emt 0:04:03]} Qxd1 {[%emt 0:00:40]} 41. Rxd1 {[%emt 0:00:28]} Ne2+ {[%emt 0:00:26]} 42. Kg2 {[%emt 0:00:08]} Nxg3 {[%emt 0:00:59]} 43. Kxg3 {[%emt 0:00:03]} Bxc4 {[%emt 0:01:26]} 44. Bc5 {[%emt 0:01:00]} Bd5 {[%emt 0:00:06]} 45. Rd3 {[%emt 0:02:23]} 1-0

[Event "Gibraltar Amateurs A 2020"]
[Site "Caleta"]
[Date "2020.01.24"]
[Round "5.18"]
[White "Dhanwani, Aditya"]
[Black "Longdin, Michael"]
[Result "0-1"]
[ECO "A80"]
[WhiteElo "1565"]
[BlackElo "1680"]
[Annotator "NA RC"]
[PlyCount "66"]
[EventDate "2020.01.20"]
[EventType "swiss"]
[EventCountry "GGB"]
[SourceTitle "playchess.com"]
[Source "ChessBase"]
[SourceQuality "1"]
[TimeControl "6600+10"]

1. d4 {[%emt 0:00:00]} e6 {[%emt 0:01:13]} 2. Nf3 {[%emt 0:00:04]} f5 {[%emt 0:00:50]} 3. h3 {[%emt 0:00:28]} Nf6 {[%emt 0:00:26]} 4. g4 {[%emt 0:00:12]} fxg4 {[%emt 0:05:26]} 5. hxg4 {[%emt 0:00:20]} Nxg4 {[%emt 0:01:28]} 6. e4 {[%emt 0:00:09]} Be7 {[%emt 0:06:01]} 7. Nh4 {[%emt 0:01:24]} Bxh4 {[%emt 0:08:09]} 8. Qxg4 {[%emt 0:01:01]} Bxf2+ {[%emt 0:01:47]} 9. Kxf2 {[%emt 0:32:39]} Qf6+ {[%emt 0:02:44]} 10. Kg2 {[%emt 0:09:54]} Qxd4 {[%emt 0:02:45]} 11. Rxh7 {[%emt 0:03:34]} O-O {[%emt 0:08:27]} 12. Qh4 {[%emt 0:19:32]} Rf2+ {[%emt 0:03:38]} 13. Kg3 {[%emt 0:31:21]} Rxf1 {[%emt 0:10:03]} 14. Rh8+ {[%emt 0:01:18]} Kf7 {[%emt 0:00:09]} 15. Qh5+ {[%emt 0:01:25]} Ke7 {[%emt 0:02:08]} 16. Bg5+ {[%emt 0:02:57]} Kd6 {[%emt 0:00:45]} 17. Qh2 {[%emt 0:01:55]} Qe5+ {[%emt 0:02:44]} 18. Kg2 {[%emt 0:00:52]} Qxh2+ {[%emt 0:00:13]} 19. Kxh2 {[%emt 0:00:22]} Nc6 {[%emt 0:00:58]} 20. Bh4 {[%emt 0:00:44]} Nd4 {[%emt 0:02:05]} 21. Kg2 {[%emt 0:00:43]} Rc1 {[%emt 0:01:45]} 22. Bg3+ {[%emt 0:00:28]} Kc6 {[%emt 0:00:35]} 23. a4 {[%emt 0:01:37]} Nxc2 {[%emt 0:01:13]} 24. Ra2 {[%emt 0:00:20]} Rxb1 {[%emt 0:00:18]} 25. b3 {[%emt 0:00:20]} Ne3+ {[%emt 0:01:12]} 26. Kf3 {[%emt 0:00:10]} Rxb3 {[%emt 0:02:39]} 27. Ke2 {[%emt 0:00:13]} Nc4 {[%emt 0:00:49]} 28. Rc2 {[%emt 0:00:23]} d5 {[%emt 0:00:29]} 29. exd5+ {[%emt 0:00:07]} exd5 {[%emt 0:00:05]} 30. Rh1 {[%emt 0:00:13]} Rxg3 {[%emt 0:00:33]} 31. Kf2 {[%emt 0:00:08]} Rg6 {[%emt 0:01:10]} 32. Re1 {[%emt 0:00:12]} Bf5 {[%emt 0:00:31]} 33. Rc3 {[%emt 0:00:05]} Rf8 {[%emt 0:00:42]} 0-1